bitfinex-derivatives/quotes_SOLF0:USTF0_20250929
["timestamp","ask_amount","ask_price","bid_price","bid_amount"]
[1759115330360,7.34,209.3,209.25,7.48]
[1759115330764,7.34,209.3,209.24,5.34818359]
[1759115331158,7.34,209.3,209.25,7.48]
[1759115331357,7.34,209.3,209.24,5.34818359]
[1759115331760,7.34,209.3,209.25,7.48]
[1759115332163,4.2979,209.33,209.25,7.48]
[1759115332662,7.34,209.32,209.25,123.92]
[1759115333070,7.34,209.32,209.25,129.26818359]
[1759115333268,7.34,209.32,209.26,7.48]
[1759115333667,7.34,209.32,209.24,5.34818359]
[1759115333863,4.2986,209.3,209.23,12.82818359]
[1759115334067,7.65,209.29,209.23,12.82818359]
[1759115334267,7.65,209.38,209.24,13.25818359]
[1759115334575,7.65,209.34,209.28,5.34818359]
[1759115335372,7.65,209.34,209.3,7.91]
[1759115335769,7.65,209.34,209.29,5.34818359]
[1759115336673,7.65,209.34,209.3,7.91]
[1759115337071,7.65,209.37,209.3,13.25818359]
[1759115337374,7.65,209.37,209.31,5.34818359]
[1759115338371,7.65,209.37,209.29,5.34818359]
[1759115338670,66.8341,209.4,209.28,31.68818359]
[1759115339070,7.65,209.39,209.28,39.59818359]
[1759115339271,66.8341,209.4,209.28,39.59818359]
[1759115339465,7.65,209.39,209.28,39.59818359]
[1759115339672,7.65,209.35,209.28,39.59818359]
[1759115341571,7.65,209.33,209.27,5.34818359]
[1759115341975,7.65,209.33,209.25,7.91]
[1759115342476,4.2984,209.31,209.25,7.91]
[1759115342671,7.65,209.33,209.25,7.91]
[1759115342865,7.65,209.31,209.23,5.34818359]
[1759115343073,7.65,209.31,209.22,7.91]
[1759115343264,4.2989,209.28,209.22,7.91]
[1759115343472,7.65,209.27,209.19,5.34818359]
[1759115343670,2.19243167,209.33,209.21,13.25818359]
[1759115343867,7.65,209.32,209.23,7.91]
[1759115344077,7.65,209.32,209.23,13.25818359]
[1759115344277,7.65,209.32,209.25,13.25818359]
[1759115344775,7.65,209.32,209.25,7.91]
[1759115345280,7.65,209.32,209.25,13.25818359]
[1759115345576,11.9481,209.32,209.25,13.25818359]
[1759115345881,7.65,209.32,209.25,7.91]
[1759115346470,7.65,209.29,209.25,7.91]
[1759115347872,7.65,209.29,209.23,121.86818359]
[1759115348174,7.65,209.29,209.24,5.34818359]
[1759115348375,4.2981,209.32,209.25,7.91]
[1759115348972,4.2981,209.32,209.25,13.25818359]
[1759115349572,7.65,209.33,209.25,13.25818359]
[1759115349778,7.65,209.36,209.27,5.34818359]
[1759115350077,7.65,209.36,209.28,7.91]
[1759115350476,7.65,209.36,209.29,1.40158566]
[1759115350673,7.65,209.36,209.3,7.91]
[1759115351868,7.65,209.36,209.3,13.25818359]
[1759115352271,7.65,209.36,209.3,7.91]
[1759115352782,7.65,209.36,209.3,13.25818359]
[1759115353280,7.65,209.36,209.3,7.91]
[1759115365781,7.65,209.36,209.3,13.25818359]
[1759115365983,7.65,209.36,209.31,1.40158566]
[1759115366187,8.48197246,209.38,209.34,7.6]
[1759115366682,0.97197246,209.38,209.34,7.6]
[1759115366888,0.97197246,209.38,209.35,7.6]
[1759115367388,8.48197246,209.38,209.35,7.6]
[1759115367792,0.97197246,209.38,209.32,1.40158566]
[1759115367984,7.51,209.37,209.3,11.04816925]
[1759115369888,7.51,209.37,209.3,5.34818359]
[1759115370095,7.51,209.37,209.29,7.6]
[1759115370386,7.51,209.37,209.32,7.6]
[1759115370581,7.51,209.37,209.33,7.6]
[1759115371388,7.51,209.37,209.31,1.40158566]
[1759115371984,7.51,209.37,209.32,7.6]
[1759115372183,7.51,209.37,209.31,1.40158566]
[1759115372383,7.51,209.37,209.32,7.6]
[1759115372693,7.51,209.37,209.31,1.40158566]
[1759115373090,7.51,209.37,209.32,1.40158566]
[1759115373295,7.51,209.37,209.33,7.6]
[1759115373491,7.51,209.37,209.32,1.40158566]
[1759115373694,7.51,209.37,209.33,7.6]
[1759115373895,7.51,209.37,209.32,1.40158566]
[1759115374088,7.51,209.37,209.33,7.6]
[1759115374791,7.51,209.37,209.32,1.40158566]
[1759115374989,7.51,209.37,209.33,7.6]
[1759115375187,7.51,209.37,209.32,1.40158566]
[1759115375794,7.51,209.37,209.33,7.6]
[1759115375993,7.51,209.37,209.32,15.55607567]
[1759115376399,7.51,209.37,209.33,7.6]
[1759115376896,0.97197246,209.38,209.33,7.6]
[1759115377095,11.8064,209.4,209.34,9.00158566]
[1759115378297,4.2964,209.4,209.32,15.55607567]
[1759115378503,7.51,209.39,209.32,15.55607567]
[1759115380395,1.40158566,209.42,209.32,14.15449001]
[1759115380702,7.51,209.39,209.31,7.6]
[1759115381198,4.297,209.38,209.31,7.6]
[1759115381912,4.2972,209.36,209.31,7.6]
[1759115382094,7.51,209.35,209.31,7.6]
[1759115382701,7.51,209.35,209.3,48.70976925]
[1759115382900,7.51,209.35,209.3,63.19083546]
[1759115383399,7.51,209.35,209.31,7.6]
[1759115384003,7.51,209.35,209.3,57.84265187]
[1759115384502,7.51,209.35,209.31,7.6]
[1759115384805,7.51,209.35,209.3,57.84265187]
[1759115384996,7.51,209.35,209.31,7.6]
[1759115385398,7.51,209.35,209.3,57.84265187]
[1759115385602,7.51,209.35,209.31,7.6]
[1759115385804,7.51,209.35,209.3,57.84265187]
[1759115386809,4.2976,209.35,209.31,7.6]
[1759115387008,7.51,209.34,209.31,7.6]
[1759115391705,1.40158566,209.37,209.3,61.7892498]
[1759115391909,7.51,209.34,209.3,56.44106621]
[1759115392407,4.2979,209.33,209.3,56.44106621]
[1759115393010,7.51,209.32,209.3,56.44106621]
[1759115393707,4.2979,209.33,209.3,56.44106621]
[1759115393910,12.1075,209.35,209.3,19.8292498]
[1759115394309,12.1075,209.35,209.31,7.99]
[1759115394713,4.2975,209.35,209.3,21.23083546]
[1759115394912,4.2975,209.35,209.32,7.99]
[1759115395108,12.1075,209.35,209.32,7.99]
[1759115396512,4.2977,209.34,209.3,21.23083546]
[1759115396713,7.81,209.33,209.3,19.8292498]
[1759115396913,7.81,209.33,209.31,7.99]
[1759115397114,7.81,209.31,209.29,5.34818359]
[1759115397416,7.81,209.31,209.25,7.98633164]
[1759115397417,7.81,209.31,209.27,5.34818359]
[1759115397613,1.40158566,209.32,209.26,5.34818359]
[1759115397816,7.81,209.31,209.26,5.34818359]
[1759115398016,12.1088,209.29,209.26,5.34818359]
[1759115398218,7.81,209.28,209.26,5.34818359]
[1759115399307,7.81,209.28,209.25,19.36694659]
[1759115399510,7.81,209.28,209.25,13.33818359]
[1759115399814,12.109,209.28,209.25,13.33818359]
[1759115400215,4.299,209.28,209.26,7.99]
[1759115400515,7.81,209.29,209.26,13.33818359]
[1759115400715,4.2985,209.3,209.27,7.99]
[1759115401109,12.1085,209.3,209.27,7.99]
[1759115401511,7.81,209.28,209.25,19.35197814]
[1759115401716,12.1088,209.29,209.26,7.99]
[1759115401913,4.2988,209.29,209.26,7.99]
[1759115402119,4.2988,209.29,209.25,7.99]
[1759115402316,7.81,209.28,209.25,7.99]
[1759115402512,12.109,209.28,209.25,7.99]
[1759115402718,12.109,209.28,209.23,6.02345882]
[1759115402719,4.299,209.28,209.23,6.02345882]
[1759115402918,7.81,209.27,209.23,14.01345882]
[1759115403119,7.81,209.27,209.23,0.67527523]
[1759115403423,7.81,209.27,209.24,7.99]
[1759115404019,7.81,209.27,209.22,5.34818359]
[1759115404322,7.81,209.26,209.2,5.34818359]
[1759115404514,12.1101,209.23,209.19,355.59]
[1759115405019,12.1101,209.23,209.2,7.99]
[1759115405223,7.81,209.23,209.2,7.99]
[1759115405414,7.81,209.23,209.2,22.56399598]
[1759115405622,12.1095,209.25,209.21,7.99]
[1759115405921,12.1095,209.25,209.19,1.40158566]
[1759115406126,4.2991,209.27,209.2,7.99]
[1759115408825,4.2991,209.27,209.2,22.16550907]
[1759115409022,12.1094,209.26,209.2,22.16550907]
[1759115410127,4.2997,209.25,209.2,14.17550907]
[1759115410324,7.81,209.24,209.2,7.99]
[1759115410523,74.6852,209.27,209.18,116.5]
[1759115410723,7.81,209.25,209.16,0.83150148]
[1759115410928,7.81,209.23,209.16,15.36527255]
[1759115411131,7.81,209.23,209.16,0.83150148]
[1759115411327,1.40158566,209.22,209.16,0.83150148]
[1759115411526,1.40158566,209.22,209.13,1.40158566]
[1759115411831,7.81,209.21,209.13,1.40158566]
[1759115412235,7.81,209.21,209.12,125.42194874]
[1759115412437,7.85,209.22,209.12,125.42194874]
[1759115412631,4.3011,209.18,209.12,125.42194874]
[1759115414039,4.3011,209.18,209.12,140.07465455]
[1759115414339,12.1513,209.17,209.13,7.24]
[1759115414733,7.85,209.16,209.13,7.24]
[1759115416146,7.85,209.19,209.13,7.24]
[1759115418245,12.1509,209.19,209.13,7.24]
[1759115420742,12.1509,209.19,209.13,123.78]
[1759115424338,4.3003,209.21,209.13,116.54]
[1759115424537,4.3003,209.21,209.14,7.78]
[1759115430351,7.57,209.23,209.15,7.78]
[1759115430544,7.57,209.23,209.17,7.78]
[1759115438857,7.57,209.23,209.17,12.081]
[1759115439052,7.57,209.23,209.17,4.301]
[1759115439248,7.57,209.23,209.18,7.78]
[1759115439952,4.2993,209.26,209.17,4.301]
[1759115440157,11.8696,209.25,209.17,7.78]
[1759115445059,7.57,209.25,209.17,7.78]
[1759115445961,11.8695,209.25,209.17,7.78]
[1759115446360,7.57,209.25,209.19,7.78]
[1759115449163,7.57,209.25,209.19,13.12818359]
[1759115449658,7.57,209.2,209.16,5.34818359]
[1759115449962,7.57,209.2,209.14,5.34818359]
[1759115450758,7.57,209.2,209.13,7.78]
[1759115450959,11.8707,209.2,209.13,7.78]
[1759115452965,4.3007,209.2,209.12,15.51119877]
[1759115453267,7.57,209.18,209.12,15.51119877]
[1759115458273,7.57,209.18,209.12,22.72119877]
[1759115461377,11.8711,209.18,209.12,22.72119877]
[1759115461870,7.56,209.15,209.12,14.67925003]
[1759115462065,7.56,209.15,209.1,34.82]
[1759115462271,4.3015,209.16,209.1,42.03]
[1759115462465,7.56,209.15,209.1,42.03]
[1759115462671,4.3015,209.16,209.1,34.82]
[1759115462966,11.8615,209.16,209.1,42.03]
[1759115464179,7.56,209.16,209.1,42.03]
[1759115465279,7.56,209.16,209.1,34.82]
[1759115465582,7.56,209.16,209.1,49.31778536]
[1759115465777,7.56,209.16,209.11,7.21]
[1759115466871,7.56,209.16,209.1,49.31778536]
[1759115467076,7.56,209.16,209.11,7.21]
[1759115467582,7.56,209.16,209.1,49.31778536]
[1759115467976,7.56,209.16,209.11,7.21]
[1759115469075,7.56,209.16,209.1,49.31778536]
[1759115469379,7.56,209.16,209.11,7.21]
[1759115469678,7.56,209.16,209.1,49.31778536]
[1759115470382,7.56,209.17,209.11,7.21]
[1759115470578,7.56,209.17,209.1,49.31778536]
[1759115470779,7.56,209.19,209.1,49.31778536]
[1759115470982,66.8987,209.2,209.1,49.31778536]
[1759115471581,7.56,209.15,209.1,49.31778536]
[1759115471785,4.3015,209.16,209.1,49.31778536]
[1759115471980,7.76,209.15,209.1,49.31778536]
[1759115472186,12.0615,209.16,209.1,49.31778536]
[1759115472583,4.3015,209.16,209.1,49.31778536]
[1759115472789,12.0615,209.16,209.1,56.53778536]
[1759115478595,9.16413442,209.16,209.1,7.22]
[1759115479594,4.3023,209.12,209.1,7.22]
[1759115482098,12.0623,209.12,209.1,7.22]
[1759115482698,4.3023,209.12,209.1,7.22]
[1759115484803,4.3018,209.14,209.1,7.22]
[1759115485004,7.42,209.13,209.1,7.22]
[1759115486002,11.7221,209.13,209.1,7.22]
[1759115486404,11.7221,209.13,209.09,7.37]
[1759115486601,11.7221,209.13,209.08,14.21231546]
[1759115486903,11.7221,209.13,209.07,7.37]
[1759115487804,7.42,209.17,209.09,7.37]
[1759115488004,7.42,209.17,209.11,7.37]
[1759115488799,82.34,209.24,209.11,7.37]
[1759115488800,4.3015,209.16,209.11,7.37]
[1759115489106,4.3015,209.16,209.1,1.40413442]
[1759115489602,11.7215,209.16,209.11,7.37]
[1759115490000,7.42,209.15,209.11,7.37]
[1759115490600,11.7219,209.14,209.08,14.57162369]
[1759115490801,11.7219,209.14,209.08,1.40413442]
[1759115491904,11.7219,209.14,209.09,7.37]
[1759115492098,11.7219,209.14,209.08,1.40413442]
[1759115492303,11.7219,209.14,209.09,7.37]
[1759115492503,11.7219,209.14,209.08,15.87536307]
[1759115492702,11.7219,209.14,209.09,7.37]
[1759115493104,11.7219,209.14,209.08,1.40413442]
[1759115493405,11.7219,209.14,209.09,7.37]
[1759115493602,11.7219,209.14,209.08,1.40413442]
[1759115493800,11.7219,209.14,209.09,7.37]
[1759115494000,11.7219,209.14,209.08,1.40413442]
[1759115494201,11.7219,209.14,209.09,7.37]
[1759115494404,7.42,209.14,209.08,9.39046606]
[1759115494600,4.3014,209.16,209.1,8.77413442]
[1759115495604,7.42,209.22,209.13,7.37]
[1759115495804,7.42,209.22,209.14,1.40413442]
[1759115496206,11.7201,209.22,209.15,7.37]
[1759115499607,7.42,209.22,209.16,1.40413442]
[1759115499907,7.42,209.26,209.2,8.77413442]
[1759115501699,7.42,209.3,209.23,7.37]
[1759115502502,11.7185,209.3,209.23,7.37]
[1759115502808,7.42,209.3,209.24,1.40413442]
[1759115503509,7.42,209.3,209.27,7.37]
[1759115505109,7.42,209.33,209.26,8.77413442]
[1759115507807,7.42,209.33,209.23,66.2998]
[1759115507808,7.42,209.33,209.28,1.40413442]
[1759115508006,7.42,209.33,209.29,7.37]
[1759115510617,8.42032379,209.36,209.3,1.40413442]
[1759115510816,8.42032379,209.36,209.3,15.44963675]
[1759115511012,8.42032379,209.36,209.3,1.40413442]
[1759115513717,8.42032379,209.36,209.29,8.77413442]
[1759115515419,8.42032379,209.36,209.29,22.83750199]
[1759115515815,7.42,209.36,209.29,22.83750199]
[1759115518422,7.42,209.36,209.3,7.99]
[1759115518824,7.4,209.38,209.3,7.99]
[1759115519026,1.40413442,209.37,209.3,7.99]
[1759115519224,7.4,209.36,209.29,14.06336757]
[1759115519419,1.40413442,209.37,209.28,1.40413442]
[1759115519621,7.4,209.36,209.28,1.40413442]
[1759115519821,7.4,209.33,209.27,7.99]
[1759115521031,11.6972,209.36,209.29,7.99]
[1759115523128,11.6972,209.36,209.29,22.26686138]
[1759115523425,7.4,209.36,209.29,14.27686138]
[1759115523630,7.4,209.36,209.3,9.39413442]
[1759115534333,11.6974,209.36,209.3,7.99]
[1759115540840,7.4,209.36,209.3,7.99]
[1759115541028,7.4,209.36,209.29,14.16155718]
[1759115541029,7.62,209.42,209.32,7.9]
[1759115541736,4.2967,209.39,209.32,7.9]
[1759115542139,66.8221,209.44,209.35,7.9]
[1759115542140,4.2961,209.42,209.35,7.9]
[1759115542336,7.62,209.44,209.35,7.9]
[1759115542629,7.62,209.44,209.38,7.9]
[1759115543639,11.9156,209.44,209.38,7.9]
[1759115545039,11.6659,209.43,209.37,9.49960591]
[1759115545936,11.6659,209.43,209.37,7.31]
[1759115546240,7.37,209.4,209.34,7.31]
[1759115548238,7.37,209.4,209.34,9.49960591]
[1759115549039,7.37,209.39,209.33,116.36]
[1759115549742,7.37,209.39,209.33,123.67]
[1759115550537,7.37,209.39,209.33,116.36]
[1759115551540,7.37,209.39,209.34,7.31]
[1759115551738,7.37,209.39,209.33,116.36]
[1759115552340,7.37,209.39,209.34,7.31]
[1759115552640,7.37,209.41,209.34,7.31]
[1759115555246,11.6664,209.41,209.34,7.31]
[1759115555443,4.2964,209.41,209.33,116.36]
[1759115555643,7.37,209.4,209.33,116.36]
[1759115555838,11.6665,209.4,209.33,116.36]
[1759115556038,66.8219,209.44,209.33,116.36]
[1759115556039,66.8251,209.43,209.33,116.36]
[1759115556342,7.37,209.42,209.33,116.34]
[1759115556649,4.2962,209.41,209.34,9.49960591]
[1759115559250,4.2962,209.41,209.34,7.31]
[1759115560844,7.37,209.42,209.34,7.31]
[1759115561248,7.37,209.42,209.35,116.34]
[1759115561748,7.37,209.45,209.35,116.34]
[1759115562144,66.8149,209.46,209.35,116.34]
[1759115562339,7.37,209.45,209.35,116.34]
[1759115562548,66.8149,209.46,209.35,116.34]
[1759115562745,4.2963,209.41,209.35,116.34]
[1759115563046,7.37,209.41,209.35,116.34]
[1759115564648,11.6665,209.4,209.35,116.34]
[1759115564850,11.6665,209.4,209.36,7.31]
[1759115565149,7.37,209.39,209.29,19.82019449]
[1759115565447,7.37,209.39,209.28,7.31]
[1759115566047,4.2977,209.34,209.28,7.31]
[1759115566450,7.37,209.37,209.28,7.31]
[1759115567450,7.37,209.37,209.28,21.72079558]
[1759115567646,7.37,209.35,209.28,21.72079558]
[1759115568753,11.6682,209.32,209.28,21.72079558]
[1759115568952,7.37,209.34,209.26,352.95468681]
[1759115569153,7.37,209.34,209.26,347.6]
[1759115569356,66.8588,209.32,209.25,5.35468681]
[1759115569550,66.8588,209.32,209.24,7.31]
[1759115569551,7.37,209.31,209.24,7.31]
[1759115569750,7.37,209.31,209.24,21.46703569]
[1759115569951,7.37,209.31,209.24,7.31]
[1759115570154,11.669,209.28,209.24,7.31]
[1759115570353,66.8638,209.31,209.23,116.54]
[1759115570551,7.37,209.3,209.23,116.54]
[1759115571651,11.6692,209.27,209.23,123.85]
[1759115571850,11.6692,209.27,209.24,7.31]
[1759115573261,4.2992,209.27,209.24,7.31]
[1759115573557,4.2986,209.3,209.25,7.31]
[1759115573753,4.2986,209.3,209.25,7.54]
[1759115573953,4.2986,209.3,209.24,7.54]
[1759115576660,7.37,209.33,209.24,7.54]
[1759115576661,4.298,209.32,209.24,14.49811737]
[1759115576967,4.298,209.32,209.25,7.54]
[1759115579961,7.37,209.33,209.25,7.54]
[1759115581060,11.668,209.33,209.25,7.54]
[1759115581361,7.67,209.32,209.25,7.54]
[1759115581750,11.9686,209.3,209.24,14.66936415]
[1759115582061,7.67,209.3,209.19,129.55468681]
[1759115582257,66.8625,209.31,209.2,134.91380479]
[1759115583058,7.67,209.26,209.2,134.91380479]
[1759115583259,7.67,209.26,209.2,120.85726106]
[1759115583567,7.67,209.25,209.17,116.72]
[1759115584654,4.2999,209.23,209.17,116.72]
[1759115585453,4.2999,209.23,209.17,130.79862909]
[1759115585964,4.3002,209.22,209.17,116.76]
[1759115586261,11.9702,209.22,209.18,7.54]
[1759115586456,11.969,209.28,209.18,7.54]
[1759115586655,7.67,209.28,209.19,7.54]
[1759115587054,11.9696,209.25,209.19,7.54]
[1759115587258,7.67,209.25,209.19,7.54]
[1759115588567,4.3001,209.23,209.19,7.54]
[1759115588763,11.9701,209.23,209.19,7.54]
[1759115591164,11.9701,209.23,209.18,116.86]
[1759115591372,4.2995,209.25,209.19,7.54]
[1759115594366,66.8503,209.35,209.19,7.54]
[1759115594572,74.7428,209.34,209.22,7.73]
[1759115594867,66.856,209.33,209.23,71.2]
[1759115595071,66.856,209.33,209.22,7.73]
[1759115595267,4.299,209.28,209.23,31.34]
[1759115595472,12.189,209.28,209.24,7.73]
[1759115596971,12.189,209.28,209.23,32.74234493]
[1759115597173,12.189,209.28,209.24,7.73]
[1759115601678,7.89,209.28,209.17,20.01965812]
[1759115601874,66.8756,209.27,209.16,7.73]
[1759115602077,7.89,209.24,209.17,1.40234493]
[1759115602274,12.1904,209.21,209.17,9.13234493]
[1759115602474,12.1904,209.21,209.17,7.73]
[1759115607379,12.1904,209.21,209.16,1.40234493]
[1759115607881,12.1904,209.21,209.17,7.35]
[1759115610483,7.43,209.2,209.17,7.35]
[1759115611281,7.43,209.2,209.17,12.70468681]
[1759115611578,4.3004,209.21,209.17,5.35468681]
[1759115611783,4.2998,209.24,209.19,7.35]
[1759115611984,7.43,209.23,209.19,7.35]
[1759115612480,7.43,209.23,209.17,9.65578681]
[1759115612686,66.8652,209.3,209.17,9.65578681]
[1759115612687,4.2992,209.27,209.21,7.35]
[1759115612884,7.43,209.29,209.21,7.35]
[1759115613885,7.43,209.29,209.25,7.35]
[1759115614187,7.43,209.32,209.24,1.40234493]
[1759115615578,4.2986,209.29,209.24,1.40234493]
[1759115615785,7.43,209.28,209.24,8.75234493]
[1759115616382,4.2983,209.31,209.25,7.35]
[1759115616585,7.43,209.31,209.27,7.35]
[1759115616985,1.40234493,209.34,209.25,1.40234493]
[1759115617185,7.43,209.33,209.25,1.40234493]
[1759115618590,1.40234493,209.34,209.25,1.40234493]
[1759115618591,4.2984,209.31,209.25,1.40234493]
[1759115618894,7.43,209.33,209.25,1.40234493]
[1759115619596,4.2986,209.3,209.25,1.40234493]
[1759115619895,7.43,209.29,209.25,8.75234493]
[1759115620493,1.40234493,209.34,209.23,1.40234493]
[1759115620494,7.43,209.28,209.23,1.40234493]
[1759115620696,7.43,209.32,209.24,7.35]
[1759115621294,4.299,209.28,209.24,7.35]
[1759115621497,11.729,209.28,209.24,7.35]
[1759115621988,11.729,209.28,209.23,1.40234493]
[1759115622193,11.7285,209.3,209.26,7.35]
[1759115622391,11.7285,209.3,209.25,1.40234493]
[1759115622593,11.7285,209.3,209.26,7.35]
[1759115623096,11.7285,209.3,209.25,1.40234493]
[1759115623297,11.7285,209.3,209.26,7.35]
[1759115628094,1.40234493,209.35,209.26,7.35]
[1759115628305,66.828,209.42,209.3,7.35]
[1759115628306,7.43,209.34,209.3,7.35]
[1759115628997,7.43,209.38,209.3,7.35]
[1759115630197,7.43,209.34,209.3,7.35]
[1759115630397,4.2975,209.35,209.29,1.40234493]
[1759115630596,11.7275,209.35,209.29,8.75234493]
[1759115631703,7.43,209.35,209.32,7.35]
[1759115632005,7.43,209.37,209.32,7.35]
[1759115632303,7.43,209.37,209.31,1.40234493]
[1759115632602,7.43,209.37,209.31,8.75234493]
[1759115635501,11.7271,209.37,209.31,8.75234493]
[1759115637097,7.43,209.37,209.33,1.40234493]
[1759115637305,11.5865,209.4,209.34,7.57]
[1759115647712,4.2968,209.39,209.34,7.57]
[1759115648017,7.29,209.38,209.33,1.40234493]
[1759115648212,7.29,209.38,209.34,7.57]
[1759115652218,7.29,209.38,209.33,1.40234493]
[1759115652423,7.29,209.38,209.34,7.34]
[1759115652922,7.29,209.38,209.35,1.40234493]
[1759115653217,1.19527447,209.47,209.31,26.28]
[1759115653218,7.66,209.42,209.37,1.40234493]
[1759115653418,7.66,209.42,209.38,7.34]
[1759115654218,2.5976194,209.47,209.37,1.40234493]
[1759115654418,7.66,209.43,209.4,7.34]
[1759115655719,4.2956,209.44,209.4,7.34]
[1759115655919,7.66,209.43,209.4,7.34]
[1759115656625,4.2956,209.44,209.4,7.34]
[1759115657326,7.66,209.43,209.4,7.34]
[1759115657533,7.66,209.46,209.4,7.34]
[1759115657724,7.66,209.46,209.39,1.40234493]
[1759115658227,1.19527447,209.47,209.38,14.0229783]
[1759115658428,7.66,209.46,209.37,7.34]
[1759115658624,7.66,209.46,209.34,7.34]
[1759115659526,11.9562,209.42,209.34,11.6375]
[1759115660228,11.9562,209.42,209.34,4.2975]
[1759115660430,11.9562,209.42,209.35,7.34]
[1759115661432,7.66,209.43,209.31,138.99163179]
[1759115661627,7.66,209.42,209.31,7.34]
[1759115662122,66.8271,209.43,209.31,21.41778357]
[1759115662323,7.66,209.43,209.32,7.34]
[1759115662629,7.66,209.43,209.33,7.34]
[1759115663627,11.9564,209.4,209.33,7.34]
[1759115665331,66.8286,209.42,209.32,116.42]
[1759115665524,66.831,209.41,209.31,14.28484712]
[1759115665730,7.45,209.4,209.29,129.17468681]
[1759115666025,7.45,209.35,209.29,123.82]
[1759115667232,7.45,209.31,209.26,5.35468681]
[1759115667530,7.45,209.31,209.23,5.35468681]
[1759115667734,11.7491,209.27,209.2,12.75468681]
[1759115668133,11.7491,209.27,209.2,27.09932906]
[1759115668332,4.2995,209.26,209.2,7.4]
[1759115668528,7.45,209.27,209.19,116.74]
[1759115668730,66.874,209.28,209.17,12.75468681]
[1759115668928,7.45,209.27,209.17,12.75468681]
[1759115669729,4.2998,209.24,209.17,12.75468681]
[1759115670339,7.45,209.25,209.18,7.4]
[1759115671143,11.7497,209.25,209.18,7.4]
[1759115673534,7.45,209.22,209.16,46.6]
[1759115675037,66.8823,209.25,209.15,8.23115394]
[1759115675243,7.45,209.21,209.12,27.37008012]
[1759115675432,7.45,209.21,209.12,22.01539331]
[1759115675737,66.8917,209.22,209.12,22.01539331]
[1759115676039,7.45,209.21,209.12,22.01539331]
[1759115676631,4.3008,209.19,209.12,22.01539331]
[1759115678042,66.9018,209.19,209.1,116.68]
[1759115678245,7.45,209.17,209.09,354.94]
[1759115679642,4.3014,209.16,209.09,354.94]
[1759115680141,4.3018,209.14,209.1,7.4]
[1759115680342,7.45,209.13,209.07,116.66]
[1759115680541,7.45,209.13,209.06,7.4]
[1759115680742,4.3014,209.16,209.06,124.06]
[1759115680942,4.3014,209.16,209.07,7.4]
[1759115681348,4.3014,209.16,209.07,124.06]
[1759115681644,4.3014,209.16,209.08,7.4]
[1759115681948,4.3018,209.14,209.08,7.4]
[1759115683851,11.7513,209.17,209.09,7.4]
[1759115684649,11.7513,209.17,209.1,7.4]
[1759115687454,8.68066085,209.22,209.12,2.18803679]
[1759115687659,69.06243679,209.28,209.09,116.66]
[1759115687660,66.866,209.3,209.19,7.4]
[1759115687863,66.8695,209.29,209.19,7.4]
[1759115688255,66.8695,209.29,209.16,2.18803679]